fUSD/lending_fUSD_20240329
["ID","MTS","AMOUNT","RATE_DAILY","PERIOD"]
[320900388,1711674646736,-500.0,0.00049863,2]
[320900389,1711674646746,-500.0,0.00049863,120]
[320900390,1711674646755,-500.0,0.00049863,120]
[320900391,1711674646764,-150.0,0.00049863,120]
[320900392,1711674646775,-500.0,0.00049863,120]
[320900393,1711674646784,-500.0,0.00049863,120]
[320900394,1711674646794,-500.0,0.00049863,120]
[320900395,1711674646804,-500.0,0.00049863,120]
[320900396,1711674646814,-500.0,0.00049863,120]
[320900397,1711674646825,-500.0,0.00049863,120]
[320900398,1711674646835,-500.0,0.00049863,120]
[320900399,1711674646845,-500.0,0.00049863,120]
[320900400,1711674646855,-500.0,0.00049863,120]
[320900401,1711674646865,-500.0,0.00049863,120]
[320900402,1711674646875,-500.0,0.00049863,120]
[320900403,1711674646885,-518.44415688,0.00049863,120]
[320900404,1711674646895,-500.0,0.00049863,120]
[320900405,1711674646906,-384.84286955,0.00049863,120]
[320900406,1711674646915,-500.14,0.00049863,120]
[320900407,1711674646927,-500.0,0.00049863,7]
[320900408,1711674646937,-500.0,0.00049863,120]
[320900409,1711674646949,-500.0,0.00049863,120]
[320900410,1711674646959,-500.0,0.00049863,120]
[320900411,1711674646971,-500.0,0.00049863,120]
[320900412,1711674646982,-500.0,0.00049863,120]
[320900413,1711674646995,-720.55,0.00049863,120]
[320900414,1711674647006,-806.48,0.00049863,120]
[320900415,1711674647017,-292.97923224,0.00049863,120]
[320900416,1711674648691,-200.0,0.00048687,2]
[320900417,1711674648700,-214.09,0.00048983,2]
[320900418,1711674648709,-165.75755517,0.00049215,2]
[320900419,1711674648719,-500.0,0.00049315,120]
[320900420,1711674648728,-500.0,0.00049315,120]
[320900421,1711674648737,-25.77850932,0.00049589,120]
[320900422,1711674648749,-740.62149068,0.00049589,120]
[320900423,1711674648758,-262.78005322,0.00049589,120]
[320900424,1711674648975,-633.23994678,0.00049589,120]
[320900425,1711674648985,-500.0,0.00049589,120]
[320900426,1711674648995,-464.18,0.00049589,120]
[320900427,1711674649005,-165.75755517,0.00049763,2]
[320900428,1711674649015,-207.02076776,0.00049863,120]
[320900429,1711674649026,-129.6334168,0.00049863,120]
[320900430,1711674649038,-563.3465832,0.00049863,120]
[320900431,1711674649048,-500.0,0.00049863,120]
[320900432,1711674649058,-847.84,0.00049863,120]
[320900433,1711674649068,-1101.29,0.00049863,120]
[320900434,1711674649077,-358.32229735,0.00049863,120]
[320900435,1711674649089,-199.98770265,0.00049863,120]
[320900436,1711674649099,-707.18,0.00049863,120]
[320900437,1711674649108,-35.48708598,0.00049863,120]
[320900438,1711674649743,-500.0,0.00049315,120]
[320900439,1711674649754,-464.51291402,0.00049863,120]
[320900440,1711674649764,-1056.38,0.00049863,120]
[320900441,1711674649774,-524.71,0.00049863,120]
[320900442,1711674649785,-500.0,0.00049863,120]
[320900443,1711674649795,-500.0,0.00049863,120]
[320900444,1711674649804,-672.41,0.00049863,120]
[320900445,1711674649814,-547.52,0.00049863,120]
[320900446,1711674649823,-886.13,0.00049863,120]
[320900447,1711674649833,-500.0,0.00049863,120]
[320900448,1711674649843,-3559.67,0.00049863,120]
[320900449,1711674649853,-746.2,0.00049863,120]
[320900450,1711674649863,-217.80118755,0.00049863,120]
[320900451,1711674649873,-1179.4,0.00049863,120]
[320900452,1711674649882,-1120.67,0.00049863,120]
[320900453,1711674649891,-500.0,0.00049863,120]
[320900454,1711674649901,-676.64,0.00049863,120]
[320900455,1711674649911,-500.0,0.00049863,120]
[320900456,1711674649921,-500.0,0.00049863,80]
[320900457,1711674649932,-5225.03,0.00049863,120]
[320900458,1711674649942,-1486.6,0.00049863,120]
[320900459,1711674649951,-1272.92,0.00049863,120]
[320900460,1711674649960,-506.12,0.00049863,120]
[320900461,1711674649970,-500.0,0.00049863,60]
[320900462,1711674649979,-500.0,0.00049863,120]
[320900463,1711674649989,-1279.62,0.00049863,120]
[320900464,1711674650000,-7295.51,0.00049863,120]
[320900465,1711674650010,-500.0,0.00049863,120]
[320900466,1711674650021,-925.43,0.00049863,120]
[320900467,1711674650031,-805.94,0.00049863,120]
[320900468,1711674650042,-500.0,0.00049863,120]
[320900469,1711674650052,-500.0,0.00049863,120]
[320900470,1711674650063,-500.0,0.00049863,120]
[320900471,1711674650074,-1150.04,0.00049863,120]
[320900472,1711674650084,-1286.63,0.00049863,120]
[320900473,1711674650095,-500.0,0.00049863,120]
[320900474,1711674650105,-2193.94,0.00049863,120]
[320900475,1711674650125,-1199.85,0.00049863,120]
[320900476,1711674650137,-701.7,0.00049863,120]
[320900477,1711674650148,-500.0,0.00049863,120]
[320900478,1711674650159,-873.0,0.00049863,120]
[320900479,1711674650170,-1100.19,0.00049863,120]
[320900480,1711674650182,-500.0,0.00049863,120]
[320900481,1711674650193,-1119.97,0.00049863,120]
[320900482,1711674650204,-2066.94,0.00049863,120]
[320900483,1711674650217,-530.83,0.00049863,120]
[320900484,1711674650228,-500.0,0.00049863,120]
[320900485,1711674650240,-944.45,0.00049863,120]
[320900486,1711674650251,-8655.36,0.00049863,120]
[320900487,1711674650262,-596.55,0.00049863,120]
[320900488,1711674650273,-778.6,0.00049863,120]
[320900489,1711674650285,-4199.62,0.00049863,120]
[320900490,1711674650296,-909.75,0.00049863,120]
[320900491,1711674650308,-797.67,0.00049863,120]
[320900492,1711674650319,-693.18,0.00049863,120]
[320900493,1711674650331,-770.83,0.00049863,120]
[320900494,1711674650342,-935.85,0.00049863,120]
[320900495,1711674650356,-533.89,0.00049863,120]
[320900496,1711674650368,-500.0,0.00049863,120]
[320900497,1711674650379,-1349.77,0.00049863,120]
[320900498,1711674650391,-678.83,0.00049863,120]
[320900499,1711674650403,-500.0,0.00049863,120]
[320900500,1711674650414,-501.74,0.00049863,120]
[320900501,1711674650425,-1537.52,0.00049863,120]
[320900502,1711674650436,-613.11,0.00049863,120]
[320900503,1711674650447,-890.86,0.00049863,120]
[320900504,1711674650458,-857.63,0.00049863,120]
[320900505,1711674650469,-917.25,0.00049863,120]
[320900506,1711674650479,-680.72,0.00049863,120]
[320900507,1711674650490,-639.76,0.00049863,120]
[320900508,1711674650502,-500.0,0.00049863,120]
[320900509,1711674650513,-578.0,0.00049863,120]
[320900510,1711674650524,-500.0,0.00049863,120]
[320900511,1711674650535,-699.95,0.00049863,120]
[320900512,1711674650546,-1142.33,0.00049863,21]
[320900513,1711674650556,-3688.6,0.00049863,120]
[320900514,1711674650568,-500.0,0.00049863,120]
[320900515,1711674650578,-556.77,0.00049863,120]
[320900516,1711674650589,-2645.48,0.00049863,120]
[320900517,1711674650601,-1022.63,0.00049863,120]
[320900518,1711674650611,-500.0,0.00049863,120]
[320900519,1711674650622,-953.05,0.00049863,120]
[320900520,1711674650633,-2912.06,0.00049863,120]
[320900521,1711674650643,-804.79,0.00049863,120]
[320900522,1711674650654,-1330.28,0.00049863,120]
[320900523,1711674650664,-609.70046106,0.00049863,120]
[320900524,1711674650674,-870.74,0.00049863,120]
[320900525,1711674650684,-1520.89,0.00049863,120]
[320900526,1711674650694,-759.63,0.00049863,120]
[320900527,1711674650704,-1416.79,0.00049863,120]
[320900528,1711674650715,-3175.93,0.00049863,120]
[320900529,1711674650726,-1032.6,0.00049863,120]
[320900530,1711674650737,-690.23,0.00049863,120]
[320900531,1711674650747,-500.0,0.00049863,120]
[320900532,1711674650757,-500.0,0.00049863,120]
[320900533,1711674650768,-774.75,0.00049863,120]
[320900534,1711674650779,-1159.76,0.00049863,120]
[320900535,1711674650790,-766.36,0.00049863,120]
[320900536,1711674650800,-2278.26,0.00049863,120]
[320900537,1711674650810,-674.03,0.00049863,120]
[320900538,1711674650821,-835.2,0.00049863,120]
[320900539,1711674650831,-863.55,0.00049863,120]
[320900540,1711674650841,-1096.47,0.00049863,120]
[320900541,1711674650851,-768.72,0.00049863,120]
[320900542,1711674650861,-596.49,0.00049863,120]
[320900543,1711674650871,-500.0,0.00049863,120]
[320900544,1711674650881,-500.0,0.00049863,120]
[320900545,1711674650891,-500.0,0.00049863,120]
[320900546,1711674650902,-1486.78,0.00049863,120]
[320900547,1711674650912,-1728.86,0.00049863,120]
[320900548,1711674650922,-1142.69,0.00049863,120]
[320900549,1711674650932,-500.0,0.00049863,120]
[320900550,1711674650942,-500.0,0.00049863,120]
[320900551,1711674650952,-743.8,0.00049863,120]
[320900552,1711674650963,-500.0,0.00049863,120]
[320900553,1711674650973,-854.64,0.00049863,120]
[320900554,1711674650983,-1549.22,0.00049863,120]
[320900555,1711674650993,-282.26763488,0.00049863,120]
[320900556,1711674651005,-1266.87,0.00049863,120]
[320900557,1711674651015,-500.0,0.00049863,120]
[320900558,1711674651025,-500.0,0.00049863,120]
[320900559,1711674651036,-500.0,0.00049863,120]
[320900560,1711674651046,-500.0,0.00049863,120]
[320900561,1711674651056,-766.4,0.00049863,120]
[320900562,1711674651066,-896.02,0.00049863,120]
[320900563,1711674651076,-1258.62,0.00049899,120]
[320900564,1711674651087,-1258.62,0.00049899,120]
[320900565,1711674651309,-1258.62,0.00049899,120]
[320900566,1711674651319,-1258.62,0.00049899,120]
[320900567,1711674651329,-150.0,0.00049899,30]
[320900568,1711674651338,-500.0,0.00049899,120]
[320900569,1711674651349,-500.0,0.00049899,120]
[320900570,1711674651360,-150.0,0.00049899,30]
[320900571,1711674651370,-236.55300758,0.00049899,7]
[320900572,1711674651379,-500.0,0.00049899,120]
[320900573,1711674651388,-500.0,0.00049899,120]
[320900574,1711674651399,-2900.95,0.00049899,120]
[320900575,1711674651409,-304829.14470276,0.000499,30]
[320900576,1711674651418,-2211.879,0.000499,48]
[320900577,1711674651428,-151.0,0.000499,120]
[320900578,1711674651438,-151.0,0.000499,120]
[320900579,1711674651448,-150.0,0.000499,10]
[320900580,1711674651457,-407.03639445,0.00049997,2]
[320900581,1711674651467,-150.0,0.00049999,30]
[320900582,1711674651477,-150.0,0.00049999,30]
[320900583,1711674651487,-500.0,0.00049999,120]
[320900584,1711674651496,-385.0,0.00049999,120]
[320900585,1711674651506,-500.0,0.00049999,120]
[320900586,1711674651516,-2900.95,0.00049999,120]
[320900587,1711674651527,-2900.95,0.00049999,120]
[320900588,1711674651537,-2900.95,0.00049999,120]
[320900589,1711674651548,-217411.21792536,0.0005,36]
[320900590,1711674651668,-868.22837681,0.0005,36]
[320900591,1711674651682,-21822.5,0.0005,36]
[320900592,1711674651697,-6396.90537519,0.0005,36]
[320900593,1711674653574,-705.78208492,0.0005,36]
[320900594,1711674653769,-173.49129728,0.0005,36]
[320900595,1711674653828,-7548.01338281,0.0005,36]
[320900596,1711674653839,-3803.23243831,0.0005,36]
[320900597,1711674653870,-154.80555815,0.00049215,2]
[320900598,1711674653879,-11485.55443054,0.0005,36]
[320900610,1711675832272,-224.0,0.000272,2]
[320900611,1711675832282,-350.0,0.00029,3]
[320900612,1711675832291,-300.0,0.00040852,2]
[320900613,1711675832301,-499.999999,0.00040952,2]
[320900614,1711675832310,-249.0,0.00040952,120]
[320900615,1711675832321,-318.26,0.00046033,2]
[320900616,1711675832331,-153.40843295,0.0004778,30]
[320900617,1711675832341,-154.80555812,0.000479,2]
[320900618,1711675832350,-159.37394239,0.0004792,30]
[320900619,1711675832360,-1000.0,0.00047939,2]
[320900620,1711675832369,-331.74,0.00047976,15]
[320900621,1711675832379,-4082.39727762,0.00048,6]
[320900622,1711675832388,-1800.0,0.00048,49]
[320900623,1711675832398,-195.27576552,0.00048,14]
[320900624,1711675832407,-250.0,0.00048007,112]
[320900625,1711675832416,-179.56,0.00048025,2]
[320900626,1711675832426,-150.0,0.00048028,4]
[320900627,1711675832435,-852.21,0.00048029,2]
[320900628,1711675832445,-171.08,0.00048041,120]
[320900629,1711675832454,-159.37394239,0.00048245,30]
[320900630,1711675832463,-318.26,0.00048297,2]
[320900631,1711675832473,-156.97,0.00048324,2]
[320900632,1711675832481,-159.37394239,0.00048498,30]
[320900633,1711675832491,-244.4,0.00048577,120]
[320900634,1711675832500,-154.80555812,0.000489,2]
[320900635,1711675832523,-407.852,0.00048966,2]
[320900636,1711675832534,-194.36849702,0.00048998,4]
[320900637,1711675832544,-217.11218502,0.00048998,4]
[320900638,1711675832554,-166.22723589,0.00048998,4]
[320900639,1711675832564,-1221.49887473,0.00048998,30]
[320900640,1711675832578,-164.35556443,0.00048998,7]
[320900641,1711675832587,-283.73456119,0.00048998,30]
[320900642,1711675832596,-2964.46411148,0.00048999,4]
[320900643,1711675832605,-1085.84449657,0.00048999,2]
[320900644,1711675832615,-30000.0,0.00049,2]
[320900645,1711675832624,-9470.88140292,0.00049195,2]
[320900646,1711675832633,-406.40536909,0.00049195,2]
[320900647,1711675832687,-671.83269204,0.00049195,2]
[320900657,1711675838213,-363.07044995,0.00048998,30]
[320900658,1711675838223,-2646.48055505,0.00049195,2]
[320900659,1711675838259,-160.94998434,0.00049195,2]
[320900660,1711675838278,-5389.47873921,0.00049203,2]
[320900661,1711675838399,-788.89410348,0.00049203,2]
[320900662,1711675838455,-7344.91769236,0.00049203,2]
[320900663,1711675838465,-207.18722966,0.00049205,7]
[320900664,1711675838474,-207.18722966,0.00049205,7]
[320900665,1711675838483,-207.18722966,0.00049205,7]
[320900666,1711675838492,-207.18722966,0.00049205,7]
[320900667,1711675838502,-207.18722966,0.00049205,7]
[320900668,1711675838511,-207.18722966,0.00049205,7]
[320900669,1711675838520,-207.18722966,0.00049205,7]
[320900670,1711675838529,-207.18722966,0.00049205,7]
[320900671,1711675838538,-207.18722966,0.00049205,7]
[320900672,1711675838548,-207.18722966,0.00049205,7]
[320900673,1711675838557,-207.18722966,0.00049205,7]
[320900674,1711675838566,-207.18722966,0.00049205,7]
[320900675,1711675838576,-207.18722966,0.00049205,7]
[320900676,1711675838586,-207.18722966,0.00049205,7]
[320900677,1711675838595,-207.18722966,0.00049205,7]
[320900678,1711675838605,-207.18722966,0.00049205,7]
[320900679,1711675838615,-207.18722966,0.00049205,7]
[320900680,1711675838624,-207.18722966,0.00049205,7]
[320900681,1711675838634,-207.18722966,0.00049205,7]
[320900682,1711675838643,-207.18722966,0.00049205,7]
[320900683,1711675838653,-207.18722966,0.00049205,7]
[320900684,1711675838662,-207.18722966,0.00049205,7]
[320900685,1711675838672,-8872.9813,0.00049205,2]
[320900687,1711675838682,-1342.92767344,0.00049207,2]
[320900688,1711675838694,-13523.29053505,0.00049209,2]
[320900690,1711675838704,-1412.586,0.00049209,30]
[320900691,1711675838713,-320.23996869,0.00049209,2]
[320900692,1711675838723,-165.95219981,0.00049215,14]
[320900693,1711675838735,-169.8341,0.00049215,2]
[320900694,1711675838745,-492.8065,0.00049215,2]
[320900695,1711675838754,-24316.0753,0.00049215,2]
[320900696,1711675838764,-6477.0641,0.00049215,2]
[320900697,1711675838777,-1000.0,0.00049215,2]
[320900698,1711675838788,-2500.0,0.00049215,2]
[320900699,1711675838798,-207.18722966,0.0004922,7]
[320900700,1711675838808,-207.18722966,0.00049229,7]
[320900701,1711675838818,-207.18722966,0.00049229,7]
[320900702,1711675838828,-207.18722966,0.00049229,7]
[320900703,1711675838837,-207.18722966,0.00049229,7]
[320900704,1711675838851,-207.18722966,0.00049229,7]
[320900705,1711675838861,-207.18722966,0.00049229,7]
[320900706,1711675838870,-207.18722966,0.00049229,7]
[320900707,1711675838880,-207.18722966,0.00049229,7]
[320900708,1711675838891,-207.18722966,0.00049229,7]
[320900709,1711675838901,-1342.92767344,0.0004923,2]
[320900710,1711675838912,-320.23996869,0.00049231,2]
[320900711,1711675838921,-207.18722966,0.00049231,7]
[320900712,1711675838931,-13523.29053505,0.00049239,2]
[320900713,1711675838942,-1342.92767344,0.00049241,2]
[320900714,1711675838952,-207.18722966,0.00049246,7]
[320900715,1711675838962,-207.18722966,0.00049246,7]
[320900716,1711675838972,-207.18722966,0.00049246,7]
[320900717,1711675838981,-207.18722966,0.00049246,7]
[320900718,1711675838991,-207.18722966,0.00049246,7]
[320900719,1711675839000,-207.18722966,0.00049246,7]
[320900720,1711675839010,-207.18722966,0.00049246,7]
[320900721,1711675839020,-207.18722966,0.00049246,7]
[320900722,1711675839030,-207.18722966,0.00049246,7]
[320900723,1711675839039,-13523.29053505,0.00049256,2]
[320900724,1711675839049,-320.23996869,0.0004927,2]
[320900725,1711675839058,-320.23996869,0.00049277,2]
[320900726,1711675839067,-207.18722966,0.00049279,7]
[320900727,1711675839078,-1342.92767344,0.00049289,2]
[320900728,1711675839087,-207.18722966,0.00049295,7]
[320900729,1711675839097,-207.18722966,0.00049295,7]
[320900730,1711675839106,-207.18722966,0.00049295,7]
[320900731,1711675839119,-207.18722966,0.00049305,7]
[320900732,1711675839129,-207.18722966,0.00049305,7]
[320900733,1711675839138,-207.18722966,0.00049305,7]
[320900734,1711675839148,-207.18722966,0.00049305,7]
[320900735,1711675839157,-207.18722966,0.00049305,7]
[320900736,1711675839167,-207.18722966,0.00049305,7]
[320900737,1711675839177,-207.18722966,0.00049305,7]
[320900738,1711675839186,-207.18722966,0.00049305,7]
[320900739,1711675839196,-207.18722966,0.00049305,7]
[320900740,1711675839206,-207.18722966,0.00049305,7]
[320900741,1711675839215,-207.18722966,0.00049305,7]
[320900742,1711675839225,-207.18722966,0.00049305,7]
[320900743,1711675839235,-207.18722966,0.00049305,7]
[320900744,1711675839244,-207.18722966,0.00049305,7]
[320900745,1711675839254,-207.18722966,0.00049305,7]
[320900746,1711675839264,-207.18722966,0.00049305,7]
[320900747,1711675839274,-207.18722966,0.00049305,7]
[320900748,1711675839284,-207.18722966,0.00049305,7]
[320900749,1711675839294,-207.18722966,0.00049305,7]
[320900750,1711675839304,-207.18722966,0.00049305,7]
[320900751,1711675839314,-207.18722966,0.00049305,7]
[320900752,1711675839324,-207.18722966,0.00049305,7]
[320900753,1711675839334,-207.18722966,0.00049305,7]
[320900754,1711675839344,-207.18722966,0.00049305,7]
[320900755,1711675839354,-207.18722966,0.00049305,7]
[320900756,1711675839363,-207.18722966,0.00049305,7]
[320900757,1711675839373,-207.18722966,0.00049305,7]
[320900758,1711675839387,-207.18722966,0.00049305,7]
[320900759,1711675839397,-207.18722966,0.00049305,7]
[320900760,1711675839406,-207.18722966,0.00049305,7]
[320900761,1711675839416,-207.18722966,0.00049305,7]
[320900762,1711675839426,-207.18722966,0.00049305,7]
[320900763,1711675839436,-207.18722966,0.00049305,7]
[320900764,1711675839446,-207.18722966,0.00049305,7]
[320900765,1711675839456,-207.18722966,0.00049305,7]
[320900766,1711675839466,-207.18722966,0.00049305,7]
[320900767,1711675839475,-207.18722966,0.00049305,7]
[320900768,1711675839699,-207.18722966,0.00049305,7]
[320900769,1711675839718,-207.18722966,0.00049305,7]
[320900770,1711675839728,-207.18722966,0.00049305,7]
[320900771,1711675839737,-207.18722966,0.00049305,7]
[320900772,1711675839747,-207.18722966,0.00049305,7]
[320900773,1711675839756,-207.18722966,0.00049305,7]
[320900774,1711675839768,-207.18722966,0.00049305,7]
[320900775,1711675839777,-207.18722966,0.00049305,7]
[320900776,1711675839787,-207.18722966,0.00049305,7]
[320900777,1711675839797,-207.18722966,0.00049305,7]
[320900778,1711675839806,-207.18722966,0.00049305,7]
[320900779,1711675839816,-207.18722966,0.00049305,7]
[320900780,1711675839826,-207.18722966,0.00049305,7]
[320900781,1711675839835,-207.18722966,0.00049305,7]
[320900782,1711675839845,-207.18722966,0.00049305,7]
[320900783,1711675839854,-207.18722966,0.00049305,7]
[320900784,1711675839864,-207.18722966,0.00049305,7]
[320900785,1711675839874,-500.0,0.00049315,120]
[320900786,1711675839884,-500.0,0.00049315,120]
[320900787,1711675839893,-500.0,0.00049315,2]
[320900788,1711675839903,-500.0,0.00049315,120]
[320900789,1711675839913,-500.0,0.00049315,120]
[320900790,1711675839922,-500.0,0.00049315,120]
[320900791,1711675839932,-500.0,0.00049315,120]
[320900792,1711675839941,-505.64,0.00049315,120]
[320900793,1711675839951,-500.0,0.00049315,120]
[320900794,1711675839961,-500.0,0.00049315,120]
[320900795,1711675839970,-500.0,0.00049315,120]
[320900796,1711675839979,-500.0,0.00049315,120]
[320900798,1711675839989,-500.0,0.00049315,120]
[320900799,1711675839998,-500.0,0.00049315,120]
[320900800,1711675840008,-500.0,0.00049315,120]
[320900801,1711675840017,-500.0,0.00049315,120]
[320900802,1711675840027,-500.0,0.00049315,120]
[320900803,1711675840036,-500.0,0.00049315,120]
[320900804,1711675840045,-500.0,0.00049315,120]
[320900805,1711675840056,-500.0,0.00049315,120]
[320900806,1711675840065,-500.0,0.00049315,120]
[320900807,1711675840075,-500.0,0.00049315,120]
[320900808,1711675840084,-500.0,0.00049315,120]
[320900809,1711675840093,-500.0,0.00049315,120]
[320900810,1711675840102,-500.0,0.00049315,120]
[320900811,1711675840111,-500.0,0.00049315,120]
[320900812,1711675840120,-500.0,0.00049315,120]
[320900813,1711675840136,-500.0,0.00049315,120]
[320900814,1711675840150,-500.0,0.00049315,120]
[320900815,1711675840160,-500.0,0.00049315,120]
[320900816,1711675840170,-500.0,0.00049315,120]
[320900817,1711675840179,-500.0,0.00049315,120]
[320900818,1711675840189,-612.97,0.00049315,120]
[320900819,1711675840199,-500.0,0.00049315,120]
[320900820,1711675840209,-500.0,0.00049315,120]
[320900821,1711675840218,-500.0,0.00049315,120]
[320900822,1711675840228,-500.0,0.00049315,30]
[320900823,1711675840238,-500.0,0.00049315,120]
[320900824,1711675840247,-500.0,0.00049315,120]
[320900825,1711675840257,-153.76,0.00049315,120]
[320900826,1711675840267,-500.0,0.00049315,120]
[320900827,1711675840277,-500.0,0.00049315,120]
[320900828,1711675840286,-500.0,0.00049315,120]
[320900829,1711675840296,-500.0,0.00049315,120]
[320900830,1711675840306,-500.0,0.00049315,120]
[320900831,1711675840315,-500.0,0.00049315,120]
[320900832,1711675840326,-500.0,0.00049315,120]
[320900833,1711675840336,-500.0,0.00049315,120]
[320900834,1711675840347,-500.0,0.00049315,120]
[320900835,1711675840357,-500.0,0.00049315,120]
[320900836,1711675840366,-500.0,0.00049315,120]
[320900837,1711675840376,-500.0,0.00049315,120]
[320900838,1711675840386,-500.0,0.00049315,120]
[320900839,1711675840396,-590.21,0.00049315,120]
[320900840,1711675840405,-500.0,0.00049315,120]
[320900841,1711675840415,-150.0,0.00049315,120]
[320900842,1711675840424,-500.0,0.00049315,120]
[320900843,1711675840434,-500.0,0.00049315,120]
[320900844,1711675840444,-500.0,0.00049315,120]
[320900845,1711675840453,-500.0,0.00049315,120]
[320900846,1711675840463,-455.44753903,0.00049315,120]
[320900847,1711675840473,-500.0,0.00049315,120]
[320900848,1711675840482,-500.0,0.00049315,120]
[320900849,1711675840491,-500.0,0.00049315,120]
[320900850,1711675840501,-500.0,0.00049315,120]
[320900851,1711675840510,-500.0,0.00049315,120]
[320900852,1711675840519,-500.0,0.00049315,120]
[320900853,1711675840530,-500.0,0.00049315,120]
[320900854,1711675840539,-500.0,0.00049315,120]
[320900855,1711675840549,-500.0,0.00049315,120]
[320900856,1711675840558,-500.0,0.00049315,120]
[320900857,1711675840567,-500.0,0.00049315,120]
[320900858,1711675840578,-560.13642224,0.00049315,120]
[320900859,1711675840587,-500.0,0.00049315,120]
[320900860,1711675840597,-500.0,0.00049315,7]
[320900861,1711675840606,-500.0,0.00049315,120]
[320900862,1711675840616,-500.0,0.00049315,120]
[320900863,1711675840626,-500.0,0.00049315,120]
[320900864,1711675840635,-500.0,0.00049315,120]
[320900865,1711675840644,-500.0,0.00049315,120]
[320900866,1711675840654,-500.0,0.00049315,120]
[320900867,1711675840667,-606.36,0.00049315,120]
[320900868,1711675840678,-500.0,0.00049315,80]
[320900869,1711675840687,-500.0,0.00049315,120]
[320900870,1711675840700,-500.0,0.00049315,120]
[320900871,1711675840709,-686.33,0.00049315,120]
[320900872,1711675840719,-980.59,0.00049315,120]
[320900873,1711675840730,-500.0,0.00049315,120]
[320900874,1711675840740,-509.48,0.00049315,120]
[320900875,1711675840749,-500.0,0.00049315,120]
[320900876,1711675840759,-4571.9,0.00049315,120]
[320900877,1711675840770,-4521.69,0.00049315,120]
[320900878,1711675840779,-1457.26,0.00049315,120]
[320900879,1711675840789,-500.0,0.00049315,120]
[320900880,1711675840799,-617.27,0.00049315,120]
[320900881,1711675840809,-500.0,0.00049315,120]
[320900882,1711675840820,-500.0,0.00049315,120]
[320900883,1711675840830,-500.0,0.00049315,120]
[320900884,1711675840841,-500.0,0.00049315,120]
[320900885,1711675840851,-1515.74,0.00049315,120]
[320900886,1711675840861,-3232.73,0.00049315,120]
[320900887,1711675840870,-500.0,0.00049315,60]
[320900888,1711675840880,-1085.93,0.00049315,120]
[320900889,1711675840890,-500.0,0.00049315,120]
[320900890,1711675840900,-500.0,0.00049315,120]
[320900891,1711675840910,-803.01,0.00049315,120]
[320900892,1711675840920,-1187.38,0.00049315,120]
[320900893,1711675840930,-1300.77,0.00049315,120]
[320900894,1711675840940,-500.0,0.00049315,120]
[320900895,1711675840949,-809.75,0.00049315,120]
[320900896,1711675840958,-1030.42,0.00049315,120]
[320900897,1711675840970,-613.99,0.00049315,120]
[320900898,1711675840980,-521.98,0.00049315,120]
[320900899,1711675840989,-500.0,0.00049315,120]
[320900900,1711675840998,-3874.65,0.00049315,120]
[320900901,1711675841008,-500.0,0.00049315,120]
[320900902,1711675841017,-1184.65,0.00049315,120]
[320900903,1711675841027,-639.54,0.00049315,120]
[320900904,1711675841036,-674.47,0.00049315,120]
[320900905,1711675841046,-681.28,0.00049315,120]
[320900906,1711675841055,-2020.03,0.00049315,120]
[320900907,1711675841064,-500.0,0.00049315,120]
[320900908,1711675841074,-500.0,0.00049315,120]
[320900909,1711675841083,-500.0,0.00049315,120]
[320900910,1711675841092,-500.0,0.00049315,120]